[Event "Pervenstvo PFO 2023_Y19_Rapid"]
[Site "Samara region, Russia"]
[Date "2023.11.11"]
[Round "1.1"]
[White "Mochalov, Dmitriy"]
[Black "Rekonchishek, Egor"]
[Result "1-0"]
[TimeControl "10:5"]
[WhiteFideId "44179634"]
[BlackFideId "34221476"]
[WhiteElo "2194"]
[BlackElo "1569"]

1. d4 {[%clk 00:10:07]} {[%emt 00:00:02]} d5 {[%clk 00:10:10]} 2. Nf3 {[%clk
00:10:08]} {[%emt 00:00:05]} Nf6 {[%clk 00:10:14]} 3. c4 {[%clk 00:10:11]}
{[%emt 00:00:03]} c6 {[%clk 00:10:18]} 4. Nbd2 {[%clk 00:10:07]} {[%emt
00:00:10]} a6 {[%clk 00:10:11]} {[%emt 00:00:12]} 5. g3 {[%clk 00:09:54]}
{[%emt 00:00:17]} Bf5 {[%clk 00:09:52]} {[%emt 00:00:24]} 6. Bg2 {[%clk
00:09:57]} {[%emt 00:00:02]} h6 {[%clk 00:09:54]} {[%emt 00:00:03]} 7. O-O
{[%clk 00:09:46]} {[%emt 00:00:15]} e6 {[%clk 00:09:58]} {[%emt 00:00:02]} 8.
b3 {[%clk 00:09:03]} {[%emt 00:00:48]} Nbd7 {[%clk 00:09:59]} {[%emt 00:00:04]}
9. Bb2 {[%clk 00:09:02]} {[%emt 00:00:06]} Ne4 {[%clk 00:10:02]} {[%emt
00:00:02]} 10. Ne1 {[%clk 00:08:26]} {[%emt 00:00:41]} Nxd2 {[%clk 00:09:49]}
{[%emt 00:00:19]} 11. Qxd2 {[%clk 00:08:28]} {[%emt 00:00:02]} Be7 {[%clk
00:09:50]} {[%emt 00:00:04]} 12. Nd3 {[%clk 00:08:30]} {[%emt 00:00:03]} O-O
{[%clk 00:09:44]} {[%emt 00:00:11]} 13. Rae1 {[%clk 00:08:31]} {[%emt
00:00:04]} a5 {[%clk 00:08:50]} {[%emt 00:01:00]} 14. f3 {[%clk 00:08:28]}
{[%emt 00:00:07]} a4 {[%clk 00:08:40]} {[%emt 00:00:15]} 15. e4 {[%clk
00:08:31]} {[%emt 00:00:02]} Bg6 {[%clk 00:08:23]} {[%emt 00:00:23]} 16. Bc3
{[%clk 00:08:00]} {[%emt 00:00:36]} axb3 {[%clk 00:07:39]} {[%emt 00:00:50]} 17.
axb3 {[%clk 00:07:24]} {[%emt 00:00:40]} b6 {[%clk 00:06:52]} {[%emt 00:00:52]}
18. Nf4 {[%clk 00:07:06]} {[%emt 00:00:22]} Bg5 {[%clk 00:06:18]} {[%emt
00:00:41]} 19. h4 {[%clk 00:07:07]} {[%emt 00:00:04]} Bxf4 {[%clk 00:06:21]}
{[%emt 00:00:02]} 20. Qxf4 {[%clk 00:07:10]} {[%emt 00:00:01]} Ra3 {[%clk
00:05:55]} {[%emt 00:00:31]} 21. Bb4 {[%clk 00:07:08]} {[%emt 00:00:07]} Rxb3
{[%clk 00:05:58]} {[%emt 00:00:03]} 22. Bxf8 {[%clk 00:07:11]} {[%emt
00:00:02]} Qxf8 {[%clk 00:06:01]} {[%emt 00:00:02]} 23. cxd5 {[%clk 00:07:03]}
{[%emt 00:00:14]} cxd5 {[%clk 00:06:03]} {[%emt 00:00:02]} 24. exd5 {[%clk
00:07:01]} {[%emt 00:00:07]} exd5 {[%clk 00:06:07]} 25. Re3 {[%clk 00:06:51]}
{[%emt 00:00:16]} Rb2 {[%clk 00:05:51]} {[%emt 00:00:20]} 26. Rf2 {[%clk
00:06:50]} {[%emt 00:00:06]} Rb1+ {[%clk 00:05:52]} {[%emt 00:00:04]} 27. Kh2
{[%clk 00:06:51]} {[%emt 00:00:03]} Nf6 {[%clk 00:04:37]} {[%emt 00:01:21]} 28.
g4 {[%clk 00:06:48]} {[%emt 00:00:08]} Qc8 {[%clk 00:04:31]} {[%emt 00:00:11]}
29. h5 {[%clk 00:06:28]} {[%emt 00:00:25]} Bc2 {[%clk 00:02:49]} {[%emt
00:01:47]} 30. Bh3 {[%clk 00:04:42]} {[%emt 00:01:52]} Qa6 {[%clk 00:01:41]}
{[%emt 00:01:13]} 31. Rxc2 {[%clk 00:04:33]} {[%emt 00:00:13]} Qa1 {[%clk
00:01:44]} {[%emt 00:00:02]} 32. Rc8+ {[%clk 00:04:29]} {[%emt 00:00:09]} Kh7
{[%clk 00:01:47]} {[%emt 00:00:02]} 33. Qf5+ {[%clk 00:04:32]} {[%emt
00:00:02]} g6 {[%clk 00:01:44]} {[%emt 00:00:09]} 34. Qxg6+ {[%clk 00:04:27]}
{[%emt 00:00:10]} 1-0

[Event "Pervenstvo PFO 2023_Y19_Rapid"]
[Site "Samara region, Russia"]
[Date "2023.11.11"]
[Round "1.2"]
[White "Nigmadzyanov, Ruslan R."]
[Black "Konstantinov, Nikita"]
[Result "0-1"]
[TimeControl "10:5"]
[WhiteFideId "34224670"]
[BlackFideId "44165250"]
[WhiteElo "1542"]
[BlackElo "2074"]

1. e4 {[%clk 00:10:08]} {[%emt 00:00:01]} e5 {[%clk 00:10:08]} {[%emt
00:00:02]} 2. Nf3 {[%clk 00:10:12]} {[%emt 00:00:01]} Nc6 {[%clk 00:10:12]}
{[%emt 00:00:01]} 3. Bb5 {[%clk 00:10:16]} Nf6 {[%clk 00:10:15]} {[%emt
00:00:02]} 4. O-O {[%clk 00:10:19]} {[%emt 00:00:02]} d6 {[%clk 00:10:07]}
{[%emt 00:00:12]} 5. d4 {[%clk 00:10:22]} {[%emt 00:00:02]} exd4 {[%clk
00:10:11]} {[%emt 00:00:02]} 6. Nxd4 {[%clk 00:10:26]} Bd7 {[%clk 00:10:16]} 7.
Bxc6 {[%clk 00:10:24]} {[%emt 00:00:08]} bxc6 {[%clk 00:10:19]} {[%emt
00:00:01]} 8. Qf3 {[%clk 00:10:25]} {[%emt 00:00:03]} c5 {[%clk 00:10:19]}
{[%emt 00:00:05]} 9. Nf5 {[%clk 00:10:28]} {[%emt 00:00:02]} Bxf5 {[%clk
00:10:22]} {[%emt 00:00:02]} 10. exf5 {[%clk 00:10:31]} {[%emt 00:00:02]} Be7
{[%clk 00:10:24]} {[%emt 00:00:02]} 11. b3 {[%clk 00:06:05]} {[%emt 00:04:32]}
O-O {[%clk 00:10:26]} {[%emt 00:00:02]} 12. Bb2 {[%clk 00:06:09]} {[%emt
00:00:01]} Nd7 {[%clk 00:10:21]} {[%emt 00:00:10]} 13. Nd2 {[%clk 00:05:44]}
{[%emt 00:00:30]} Bf6 {[%clk 00:10:03]} {[%emt 00:00:24]} 14. Bxf6 {[%clk
00:05:47]} {[%emt 00:00:02]} Nxf6 {[%clk 00:09:51]} {[%emt 00:00:16]} 15. Rad1
{[%clk 00:05:37]} {[%emt 00:00:16]} Re8 {[%clk 00:09:42]} {[%emt 00:00:14]} 16.
Rfe1 {[%clk 00:05:39]} {[%emt 00:00:02]} Qd7 {[%clk 00:09:34]} {[%emt
00:00:14]} 17. Rxe8+ {[%clk 00:04:43]} {[%emt 00:01:01]} Rxe8 {[%clk 00:09:37]}
{[%emt 00:00:02]} 18. Nc4 {[%clk 00:04:47]} d5 {[%clk 00:08:34]} {[%emt
00:01:07]} 19. Nb2 {[%clk 00:04:41]} {[%emt 00:00:11]} Qe7 {[%clk 00:07:41]}
{[%emt 00:00:59]} 20. h3 {[%clk 00:04:04]} {[%emt 00:00:41]} Qe5 {[%clk
00:07:22]} {[%emt 00:00:25]} 21. Nd3 {[%clk 00:04:01]} {[%emt 00:00:08]} Qc3
{[%clk 00:07:22]} {[%emt 00:00:05]} 22. Rc1 {[%clk 00:02:56]} {[%emt 00:01:10]}
h6 {[%clk 00:06:42]} {[%emt 00:00:45]} 23. Qf4 {[%clk 00:02:21]} {[%emt
00:00:40]} Re7 {[%clk 00:06:28]} {[%emt 00:00:20]} 24. a4 {[%clk 00:01:54]}
{[%emt 00:00:32]} c4 {[%clk 00:05:43]} {[%emt 00:00:50]} 25. bxc4 {[%clk
00:01:41]} {[%emt 00:00:19]} dxc4 {[%clk 00:05:45]} {[%emt 00:00:02]} 26. Nc5
{[%clk 00:01:44]} Qa3 {[%clk 00:05:44]} {[%emt 00:00:06]} 27. Na6 {[%clk
00:01:02]} {[%emt 00:00:48]} Qxa4 {[%clk 00:05:19]} {[%emt 00:00:30]} 28. Nxc7
{[%clk 00:00:22]} {[%emt 00:00:46]} Qc6 {[%clk 00:05:13]} {[%emt 00:00:11]} 29.
Ne6 {[%clk 00:00:13]} {[%emt 00:00:13]} fxe6 {[%clk 00:05:15]} {[%emt
00:00:04]} 30. fxe6 {[%clk 00:00:17]} Qxe6 {[%clk 00:05:15]} {[%emt 00:00:05]}
31. Rb1 {[%clk 00:00:18]} {[%emt 00:00:03]} Kh7 {[%clk 00:05:11]} {[%emt
00:00:09]} 32. g3 {[%clk 00:00:12]} {[%emt 00:00:12]} Qe4 {[%clk 00:05:06]}
{[%emt 00:00:11]} 33. Qd2 {[%clk 00:00:10]} {[%emt 00:00:06]} Qf3 {[%clk
00:05:02]} {[%emt 00:00:08]} 34. Re1 {[%clk 00:00:12]} {[%emt 00:00:04]} Rxe1+
{[%clk 00:05:00]} {[%emt 00:00:07]} 35. Qxe1 {[%clk 00:00:16]} Ne4 {[%clk
00:05:01]} {[%emt 00:00:04]} 36. Kf1 {[%clk 00:00:13]} {[%emt 00:00:09]} Nxg3+
{[%clk 00:05:03]} {[%emt 00:00:03]} 0-1

[Event "Pervenstvo PFO 2023_Y19_Rapid"]
[Site "Samara region, Russia"]
[Date "2023.11.11"]
[Round "1.3"]
[White "Pukhov, Ivan"]
[Black "Gimazetdinov, Amir"]
[Result "1/2-1/2"]
[TimeControl "10:5"]
[WhiteFideId "34301895"]
[BlackFideId "54142440"]
[WhiteElo "1955"]
[BlackElo "1749"]

1. Nf3 {[%clk 00:08:48]} {[%emt 00:01:21]} Nf6 {[%clk 00:10:07]} {[%emt
00:00:04]} 2. g3 {[%clk 00:08:52]} {[%emt 00:00:01]} d5 {[%clk 00:10:11]} 3.
Bg2 {[%clk 00:08:56]} c6 {[%clk 00:10:15]} 4. O-O {[%clk 00:08:59]} {[%emt
00:00:04]} g6 {[%clk 00:10:17]} {[%emt 00:00:03]} 5. d4 {[%clk 00:08:59]}
{[%emt 00:00:04]} Bg7 {[%clk 00:10:21]} {[%emt 00:00:01]} 6. c4 {[%clk
00:09:02]} {[%emt 00:00:03]} Nbd7 {[%clk 00:10:21]} {[%emt 00:00:04]} 7. Ne5
{[%clk 00:08:06]} {[%emt 00:00:59]} O-O {[%clk 00:10:21]} {[%emt 00:00:06]} 8.
Nc3 {[%clk 00:08:08]} {[%emt 00:00:02]} dxc4 {[%clk 00:10:18]} {[%emt
00:00:10]} 9. Nxc4 {[%clk 00:08:10]} {[%emt 00:00:03]} Nb6 {[%clk 00:10:22]}
{[%emt 00:00:02]} 10. Ne5 {[%clk 00:08:11]} {[%emt 00:00:04]} Nfd5 {[%clk
00:10:15]} {[%emt 00:00:12]} 11. Ne4 {[%clk 00:06:44]} {[%emt 00:01:32]} Nd7
{[%clk 00:10:05]} {[%emt 00:00:15]} 12. Nxd7 {[%clk 00:05:44]} {[%emt
00:01:05]} Bxd7 {[%clk 00:10:08]} {[%emt 00:00:03]} 13. Nc5 {[%clk 00:05:46]}
{[%emt 00:00:03]} Qc8 {[%clk 00:10:04]} {[%emt 00:00:08]} 14. e4 {[%clk
00:05:28]} {[%emt 00:00:23]} Nb6 {[%clk 00:10:03]} {[%emt 00:00:06]} 15. Bg5
{[%clk 00:05:07]} {[%emt 00:00:25]} Re8 {[%clk 00:10:04]} {[%emt 00:00:05]} 16.
a4 {[%clk 00:05:06]} {[%emt 00:00:06]} Bh3 {[%clk 00:10:08]} {[%emt 00:00:02]}
17. Bxh3 {[%clk 00:04:16]} {[%emt 00:00:55]} Qxh3 {[%clk 00:10:10]} {[%emt
00:00:02]} 18. Nxb7 {[%clk 00:04:20]} {[%emt 00:00:02]} Rab8 {[%clk 00:09:59]}
{[%emt 00:00:16]} 19. Na5 {[%clk 00:03:52]} {[%emt 00:00:33]} Rbc8 {[%clk
00:09:35]} {[%emt 00:00:30]} 20. Rc1 {[%clk 00:03:39]} {[%emt 00:00:17]} Qe6
{[%clk 00:09:38]} {[%emt 00:00:01]} 21. Re1 {[%clk 00:02:48]} {[%emt 00:00:57]}
Red8 {[%clk 00:09:42]} {[%emt 00:00:02]} 22. e5 {[%clk 00:02:36]} {[%emt
00:00:17]} c5 {[%clk 00:09:33]} {[%emt 00:00:14]} 23. Nb3 {[%clk 00:01:42]}
{[%emt 00:00:58]} Nxa4 {[%clk 00:08:55]} {[%emt 00:00:43]} 24. Ra1 {[%clk
00:01:12]} {[%emt 00:00:36]} Qd7 {[%clk 00:05:30]} {[%emt 00:03:29]} 25. Nxc5
{[%clk 00:00:33]} {[%emt 00:00:44]} Nxc5 {[%clk 00:05:30]} {[%emt 00:00:05]} 26.
dxc5 {[%clk 00:00:37]} Qf5 {[%clk 00:04:12]} {[%emt 00:01:23]} 27. Qc1 {[%clk
00:00:39]} {[%emt 00:00:03]} Bxe5 {[%clk 00:04:15]} {[%emt 00:00:02]} 28. Bxe7
{[%clk 00:00:38]} {[%emt 00:00:07]} Re8 {[%clk 00:04:15]} {[%emt 00:00:04]} 29.
Bd6 {[%clk 00:00:18]} {[%emt 00:00:25]} Bd4 {[%clk 00:04:00]} {[%emt 00:00:20]}
30. Rxe8+ {[%clk 00:00:07]} {[%emt 00:00:17]} Rxe8 {[%clk 00:04:01]} {[%emt
00:00:03]} 31. Qf4 {[%clk 00:00:07]} {[%emt 00:00:05]} Qd3 {[%clk 00:02:37]}
{[%emt 00:01:29]} 32. Rf1 {[%clk 00:00:07]} {[%emt 00:00:05]} Bxb2 {[%clk
00:02:26]} {[%emt 00:00:16]} 33. Qa4 {[%clk 00:00:07]} {[%emt 00:00:05]} Rc8
{[%clk 00:02:09]} {[%emt 00:00:22]} 34. Qb4 {[%emt 00:00:08]} Bd4 {[%clk
00:01:58]} {[%emt 00:00:13]} 35. Qb7 {[%clk 00:00:08]} {[%emt 00:00:04]} Qf5
{[%clk 00:01:42]} {[%emt 00:00:17]} 36. c6 {[%clk 00:00:12]} {[%emt 00:00:05]}
Bb6 {[%clk 00:01:07]} {[%emt 00:00:40]} 37. Bf4 {[%clk 00:00:07]} {[%emt
00:00:09]} g5 {[%clk 00:01:02]} {[%emt 00:00:10]} 38. Be3 {[%clk 00:00:09]}
{[%emt 00:00:03]} Bxe3 {[%clk 00:00:58]} {[%emt 00:00:10]} 39. fxe3 {[%clk
00:00:14]} Qe6 {[%clk 00:01:01]} {[%emt 00:00:01]} 40. c7 {[%clk 00:00:08]}
{[%emt 00:00:11]} Qxe3+ {[%clk 00:00:44]} {[%emt 00:00:22]} 41. Kg2 {[%clk
00:00:11]} {[%emt 00:00:02]} Qe6 {[%clk 00:00:46]} {[%emt 00:00:01]} 42. Rf2
{[%clk 00:00:07]} {[%emt 00:00:10]} Qd7 {[%clk 00:00:17]} {[%emt 00:00:34]} 43.
Rc2 {[%clk 00:00:11]} a5 {[%clk 00:00:21]} 44. h3 {[%clk 00:00:08]} {[%emt
00:00:07]} a4 {[%clk 00:00:25]} {[%emt 00:00:02]} 45. Qa7 {[%clk 00:00:08]}
{[%emt 00:00:05]} a3 {[%clk 00:00:21]} {[%emt 00:00:09]} 46. Qxa3 {[%clk
00:00:07]} {[%emt 00:00:05]} Rxc7 {[%clk 00:00:25]} {[%emt 00:00:02]} 47. Qa8+
{[%clk 00:00:08]} {[%emt 00:00:04]} Kg7 {[%clk 00:00:29]} {[%emt 00:00:01]} 48.
Qa1+ {[%clk 00:00:11]} {[%emt 00:00:02]} f6 {[%clk 00:00:32]} {[%emt 00:00:02]}
49. Rf2 {[%clk 00:00:09]} {[%emt 00:00:07]} Qc6+ {[%clk 00:00:34]} {[%emt
00:00:04]} 50. Kh2 {[%clk 00:00:13]} Rd7 {[%clk 00:00:32]} {[%emt 00:00:06]} 51.
Qe1 {[%clk 00:00:11]} {[%emt 00:00:08]} h5 {[%clk 00:00:35]} {[%emt 00:00:01]}
52. Qe8 {[%clk 00:00:11]} {[%emt 00:00:03]} h4 {[%clk 00:00:28]} {[%emt
00:00:13]} 53. gxh4 {[%clk 00:00:10]} {[%emt 00:00:06]} Qd6+ {[%clk 00:00:32]}
{[%emt 00:00:02]} 54. Kg2 {[%clk 00:00:11]} {[%emt 00:00:04]} Qd5+ {[%clk
00:00:26]} {[%emt 00:00:11]} 55. Kg3 {[%clk 00:00:08]} {[%emt 00:00:08]} gxh4+
{[%clk 00:00:19]} {[%emt 00:00:12]} 56. Kh2 {[%clk 00:00:07]} {[%emt 00:00:06]}
Qd6+ {[%clk 00:00:19]} {[%emt 00:00:04]} 57. Kh1 {[%clk 00:00:07]} {[%emt
00:00:05]} Qd1+ {[%clk 00:00:16]} {[%emt 00:00:09]} 58. Kh2 {[%clk 00:00:09]}
{[%emt 00:00:03]} Qd6+ {[%clk 00:00:20]} {[%emt 00:00:01]} 59. Kh1 {[%clk
00:00:09]} {[%emt 00:00:05]} Qd1+ {[%clk 00:00:24]} {[%emt 00:00:01]} 60. Kh2
{[%clk 00:00:13]} Qd6+ {[%clk 00:00:29]} 61. Kh1 {[%clk 00:00:10]} {[%emt
00:00:07]} Qd1+ {[%clk 00:00:33]} 62. Kh2 {[%clk 00:00:12]} {[%emt 00:00:03]}
Qd6+ {[%clk 00:00:37]} 63. Kh1 {[%clk 00:00:14]} {[%emt 00:00:04]} Qd1+ {[%clk
00:00:41]} 64. Kh2 {[%clk 00:00:11]} {[%emt 00:00:09]} Qd6+ {[%clk 00:00:39]}
{[%emt 00:00:07]} 1/2-1/2

[Event "Pervenstvo PFO 2023_Y19_Rapid"]
[Site "Samara region, Russia"]
[Date "2023.11.11"]
[Round "1.4"]
[White "Panakulov, Timur"]
[Black "Tarasenko, Iaroslav"]
[Result "0-1"]
[TimeControl "10:5"]
[WhiteFideId "44171846"]
[BlackFideId "44196008"]
[WhiteElo "1170"]
[BlackElo "2080"]

1. d4 {[%clk 00:09:42]} {[%emt 00:00:28]} Nf6 {[%clk 00:10:09]} {[%emt
00:00:01]} 2. Bf4 {[%clk 00:09:46]} d5 {[%clk 00:10:08]} {[%emt 00:00:06]} 3.
e3 {[%clk 00:09:49]} e6 {[%clk 00:10:13]} 4. Nf3 {[%clk 00:09:54]} c5 {[%clk
00:10:16]} {[%emt 00:00:02]} 5. c3 {[%clk 00:09:58]} Bd6 {[%clk 00:10:13]}
{[%emt 00:00:09]} 6. Bg3 {[%clk 00:10:01]} {[%emt 00:00:02]} Nc6 {[%clk
00:10:08]} {[%emt 00:00:10]} 7. Bb5 {[%clk 00:10:04]} {[%emt 00:00:02]} O-O
{[%clk 00:10:02]} {[%emt 00:00:11]} 8. Nbd2 {[%clk 00:09:57]} {[%emt 00:00:12]}
Ne7 {[%clk 00:09:20]} {[%emt 00:00:48]} 9. Bxd6 {[%clk 00:09:51]} {[%emt
00:00:10]} Qxd6 {[%clk 00:09:24]} {[%emt 00:00:01]} 10. Bd3 {[%clk 00:09:45]}
{[%emt 00:00:10]} Nc6 {[%clk 00:09:15]} {[%emt 00:00:15]} 11. O-O {[%clk
00:09:43]} {[%emt 00:00:07]} e5 {[%clk 00:09:05]} {[%emt 00:00:16]} 12. dxe5
{[%emt 00:00:02]} Nxe5 13. Nxe5 {[%clk 00:09:48]} {[%emt 00:00:03]} Qxe5 {[%clk
00:09:14]} 14. Nf3 {[%clk 00:09:50]} {[%emt 00:00:03]} Qh5 {[%clk 00:09:17]}
{[%emt 00:00:01]} 15. h3 {[%clk 00:09:46]} {[%emt 00:00:09]} Be6 {[%clk
00:09:06]} {[%emt 00:00:17]} 16. Qc2 {[%clk 00:09:27]} {[%emt 00:00:23]} Bxh3
{[%clk 00:08:55]} {[%emt 00:00:17]} 17. gxh3 {[%clk 00:09:23]} {[%emt
00:00:09]} Qxf3 {[%clk 00:08:58]} {[%emt 00:00:01]} 18. Kh2 {[%emt 00:00:09]}
g6 {[%clk 00:08:20]} {[%emt 00:00:37]} 19. Rg1 {[%clk 00:09:20]} {[%emt
00:00:11]} Ne4 {[%clk 00:08:14]} {[%emt 00:00:11]} 20. Bxe4 {[%clk 00:09:22]}
{[%emt 00:00:03]} dxe4 {[%clk 00:08:18]} 21. Rg3 {[%clk 00:09:20]} {[%emt
00:00:06]} Qf5 {[%clk 00:08:23]} {[%emt 00:00:02]} 22. Rg4 {[%clk 00:09:10]}
{[%emt 00:00:12]} Qe5+ {[%clk 00:08:10]} {[%emt 00:00:20]} 23. Kg2 {[%clk
00:08:58]} {[%emt 00:00:17]} f5 {[%clk 00:08:09]} {[%emt 00:00:06]} 24. Rg3
{[%clk 00:08:59]} {[%emt 00:00:04]} Rae8 {[%clk 00:07:45]} {[%emt 00:00:29]} 25.
Qb3+ {[%clk 00:09:01]} {[%emt 00:00:03]} Rf7 {[%clk 00:07:49]} 26. Rd1 {[%clk
00:09:01]} {[%emt 00:00:04]} f4 {[%clk 00:07:51]} {[%emt 00:00:04]} 27. exf4
{[%clk 00:07:58]} {[%emt 00:01:07]} Qxf4 {[%clk 00:07:52]} {[%emt 00:00:04]} 28.
Qc2 {[%clk 00:07:49]} {[%emt 00:00:15]} e3 {[%clk 00:06:52]} {[%emt 00:01:05]}
29. f3 {[%clk 00:06:13]} {[%emt 00:01:41]} Re5 {[%clk 00:06:17]} {[%emt
00:00:40]} 30. Qe2 {[%clk 00:05:42]} {[%emt 00:00:36]} Rg5 {[%clk 00:06:07]}
{[%emt 00:00:15]} 31. Rxg5 {[%clk 00:05:45]} {[%emt 00:00:02]} Qxg5+ {[%clk
00:06:11]} 32. Kh2 {[%clk 00:05:43]} {[%emt 00:00:07]} Qf4+ {[%clk 00:06:02]}
{[%emt 00:00:14]} 33. Kg2 {[%clk 00:05:46]} Re7 {[%clk 00:06:02]} {[%emt
00:00:06]} 34. Rd5 {[%clk 00:05:39]} {[%emt 00:00:12]} b6 {[%clk 00:05:55]}
{[%emt 00:00:13]} 35. c4 {[%clk 00:05:38]} {[%emt 00:00:06]} Rf7 {[%clk
00:04:22]} {[%emt 00:01:38]} 36. Rd8+ {[%clk 00:04:48]} {[%emt 00:00:55]} Rf8
{[%clk 00:04:22]} {[%emt 00:00:05]} 37. Rd5 {[%clk 00:04:44]} {[%emt 00:00:09]}
Re8 {[%clk 00:04:20]} {[%emt 00:00:07]} 38. b3 {[%clk 00:04:44]} {[%emt
00:00:05]} Re5 {[%clk 00:04:24]} 39. Rxe5 Qxe5 40. h4 {[%clk 00:04:30]} {[%emt
00:00:14]} Qd4 {[%clk 00:04:26]} {[%emt 00:00:08]} 41. f4 {[%clk 00:04:17]}
{[%emt 00:00:18]} Qxf4 {[%clk 00:04:23]} {[%emt 00:00:07]} 42. Qf3 {[%clk
00:04:21]} Qxf3+ {[%clk 00:03:58]} {[%emt 00:00:30]} 43. Kxf3 {[%clk 00:04:25]}
{[%emt 00:00:02]} Kf7 {[%clk 00:04:02]} 44. Kxe3 {[%clk 00:04:29]} {[%emt
00:00:02]} Kf6 {[%clk 00:04:06]} {[%emt 00:00:01]} 45. Kf4 {[%clk 00:04:33]} h6
{[%clk 00:04:09]} {[%emt 00:00:03]} 46. Ke4 {[%clk 00:04:34]} {[%emt 00:00:04]}
g5 {[%clk 00:04:09]} {[%emt 00:00:04]} 47. hxg5+ {[%clk 00:04:38]} {[%emt
00:00:02]} hxg5 {[%clk 00:02:48]} {[%emt 00:01:26]} 48. Kd5 {[%clk 00:04:43]}
g4 {[%clk 00:02:51]} {[%emt 00:00:02]} 49. Kc6 {[%clk 00:04:47]} g3 {[%clk
00:02:55]} {[%emt 00:00:01]} 50. Kb7 {[%clk 00:04:51]} g2 {[%clk 00:02:59]}
{[%emt 00:00:02]} 51. Kxa7 {[%clk 00:04:55]} g1=Q {[%clk 00:03:02]} {[%emt
00:00:01]} 52. Kxb6 {[%clk 00:04:59]} {[%emt 00:00:02]} Qb1 {[%clk 00:03:06]}
{[%emt 00:00:01]} 53. Kxc5 {[%clk 00:05:01]} {[%emt 00:00:03]} Qxa2 {[%clk
00:03:10]} {[%emt 00:00:02]} 54. b4 {[%clk 00:05:05]} {[%emt 00:00:01]} Qa7+
{[%clk 00:03:13]} 55. Kb5 {[%clk 00:05:08]} {[%emt 00:00:01]} Ke6 {[%clk
00:03:15]} {[%emt 00:00:02]} 56. c5 {[%clk 00:05:12]} {[%emt 00:00:02]} Kd5
{[%clk 00:03:19]} {[%emt 00:00:02]} 57. c6 {[%clk 00:05:12]} {[%emt 00:00:05]}
Qb8+ {[%clk 00:03:22]} {[%emt 00:00:01]} 0-1